Cogmind - Beta 13 @@@ ROGUE MODE // 2024.04.07 @ 03:53:39 Player: SnowyImp Result: Destroyed by P-60 Hacker with Shock Rifle Performance ------------- Evolutions (4) 2000 Regions Visited (10) 2000 Robots Destroyed (68) 340 Value Destroyed (3497) 3497 Prototype IDs (2) 40 Alien Tech Used (0) 0 Bonus (1579) 1579 TOTAL SCORE: 9456 Bonus ------- Pacifist 634 High Alert Combat Kills 645 Follower Combat Kills 114 Entered Garrisons 400 Used RIF Installer 500 Aligned with FarCom 300 Friendly Fire -1014 Cogmind --------- Core Integrity 0/850 Matter 300/300 Energy 55/100 System Corruption 3% Temperature Cool (12) Movement Walking (120) Location -6/Factory Parts ------- > --- POWER (1) -------- (None) > --- PROPULSION (4) --- Carbon-fiber Leg > --- UTILITY (8) ------ Advanced Power Amplifier Advanced Visual Processing Unit Improved Melee Analysis Suite Advanced Melee Analysis Suite Advanced ECM Suite Improved Hacking Suite > --- WEAPON (2) ------- Heavy Pick > --- INVENTORY (5) ---- Relay Coupler [Cutter] (30) Relay Coupler [Grunt] (33) Relay Coupler [Grunt] (30) Relay Coupler [Grunt] (25) Relay Coupler [Hunter] (17) Peak State ------------ > --- POWER ------------ Light Angular Momentum Engine > --- PROPULSION ------- Carbon-fiber Leg Carbon-fiber Leg Carbon-fiber Leg Carbon-fiber Leg > --- UTILITY ---------- Advanced Power Amplifier Advanced Visual Processing Unit Improved Melee Analysis Suite Improved Melee Analysis Suite Advanced ECM Suite Hacking Suite Improved Hacking Suite Improved System Shield > --- WEAPON ----------- Heavy Laser Longsword +1 > --- INVENTORY -------- Relay Coupler [Grunt] Relay Coupler [Grunt] Heavy Laser [Rating: 65] Favorites ----------- Power Improved Deuterium Engine Engine Improved Deuterium Engine Power Core Light Nuclear Core Propulsion Carbon-fiber Leg Treads Light Treads Leg Carbon-fiber Leg Wheel Compact Wheel Hover Unit Aerolev Unit Flight Unit Xenon Bombardment Thruster Utility Improved Melee Analysis Suite Device Advanced ECM Suite Processor Improved Melee Analysis Suite Hackware Improved Hacking Suite Protection Improved Light Armor Plating Weapon Longsword +1 Energy Gun Heavy Laser Special Weapon Remote Datajack Impact Weapon Heavy Flail Slashing Weapon Longsword +1 Piercing Weapon Heavy Pick Build | -11 -10 -10 -10 -9 -8 -8 -7 -6 -6 -6 ------- Run | Yrd Mat Min Exi Min Mat Gar Fac Fac Gar Fac Slots Evolved 8 | . . . . . 4 . 2 2 . . Power . | . . . . . . . . . . . Propulsion 2 | . . . . . 2 . . . . . Utility 6 | . . . . . 2 . 2 2 . . Weapon . | . . . . . . . . . . . Parts Attached 106 | 5 2 . 2 . 5 1 42 7 38 4 Power 13 | 1 . . . . 1 . 5 . 6 . Engine 9 | 1 . . . . . . 2 . 6 . Core 4 | . . . . . 1 . 3 . . . Reactor . | . . . . . . . . . . . Propulsion 52 | 2 2 . . . 2 1 23 . 22 . Treads 3 | . . . . . . . . . 3 . Leg 29 | 2 . . . . . . 9 . 18 . Wheel 1 | . . . . . . 1 . . . . Hover 1 | . . . . . 1 . . . . . Flight 18 | . 2 . . . 1 . 14 . 1 . Utility 27 | . . . . . 2 . 10 7 6 2 Device 8 | . . . . . . . 2 4 2 . Storage . | . . . . . . . . . . . Processor 8 | . . . . . . . 7 . . 1 Hackware 7 | . . . . . 2 . . 3 2 . Protection 4 | . . . . . . . 1 . 2 1 Artifact . | . . . . . . . . . . . Weapon 14 | 2 . . 2 . . . 4 . 4 2 Energy Gun 7 | 2 . . 1 . . . . . 3 1 Energy Cannon . | . . . . . . . . . . . Ballistic Gun . | . . . . . . . . . . . Ballistic Cannon . | . . . . . . . . . . . Launcher . | . . . . . . . . . . . Special Weapon 2 | . . . . . . . 1 . 1 . Impact Weapon 2 | . . . . . . . 2 . . . Slashing Weapon 2 | . . . 1 . . . 1 . . . Piercing Weapon 1 | . . . . . . . . . . 1 Special Melee Weapon . | . . . . . . . . . . . Unidentified Prototypes 2 | . . . 1 . 1 . . . . . Parts Lost 49 | . . . . . . 7 9 1 24 8 Power 8 | . . . . . . 1 2 . 4 1 Propulsion 23 | . . . . . . 4 5 . 11 3 Utility 12 | . . . . . . 1 2 1 6 2 Weapon 6 | . . . . . . 1 . . 3 2 Highest Loss Streak 7 | . . . . . . 7 3 1 7 7 To Critical Strikes 1 | . . . . . . . . . 1 . Average Slot Usage (%) 87 | . 71 71 71 71 60 37 69 89 96 97 Engine 4 | . 14 14 14 14 3 . 1 . 5 5 Core 1 | . . . . . 6 4 4 6 . . Leg 15 | . 16 . . . . . 7 . 22 25 Flight 5 | . 11 28 28 28 27 9 7 20 . . Device 9 | . . . . . . . 3 13 11 13 Processor 21 | . . . . . . . 23 26 21 24 Hackware 8 | . . . . . 6 13 5 9 10 6 Protection 4 | . . . . . . . . . 7 7 Energy Gun 4 | . 28 28 28 28 18 7 . . 5 4 Impact Weapon 2 | . . . . . . . 6 6 . . Slashing Weapon 5 | . . . . . . . 6 6 6 6 Naked Turns . | . . . . . . . . . . . Heaviest Build 29 | 8 8 8 8 8 10 10 21 16 29 29 Greatest Support 65 | 20 20 8 8 8 12 16 40 18 65 60 Greatest Overweight (x) 4 | . 1 . . . . . 4 . 1 . Average Overweight (x) . | . . . . . . . . . . . Largest Inventory Capacity 5 | 5 5 5 5 5 5 5 5 5 5 5 Average Capacity 5 | 5 5 5 5 5 5 5 5 5 5 5 Most Carried 5 | 2 3 3 4 4 5 3 5 5 5 5 Average Carried 4 | 1 2 3 3 4 3 2 4 4 4 5 Final Capacity 5 | 5 5 5 5 5 5 5 5 5 5 5 Final Carried 5 | 2 3 3 4 4 3 2 5 5 5 5 Class Distribution -------------------- 39% | Scavenger-Mutant 10% | Mutant 7% | Scavenger-Assassin 6% | Assassin 6% | Gladiator 6% | Hacker-Mutant 6% | Hacker-Ninja 4% | Scout 4% | Infiltrator-Ninja 3% | Ninja 3% | Hacker-Assassin Dominant Class ---------------- Mutant | -10/Materials Mutant | -10/Mines Mutant | -10/Exiles Mutant | -9/Mines Mutant | -8/Materials Mutant | -8/Garrison Assassin | -7/Factory Infiltrator-Ninja | -6/Factory Scavenger-Mutant | -6/Garrison Scavenger-Mutant | -6/Factory Resources | -11 -10 -10 -10 -9 -8 -8 -7 -6 -6 -6 ----------- Run | Yrd Mat Min Exi Min Mat Gar Fac Fac Gar Fac Matter Collected 1209 | 214 . . . . . . 544 33 388 30 Remotely . | . . . . . . . . . . . Salvage Created 3506 | . . . . . . . 1091 108 1967 340 Parts 156 | . . . . . . . 58 7 75 16 Haulers Intercepted . | . . . . . . . . . . . Recyclers Shooed . | . . . . . . . . . . . Parts Field Recycled . | . . . . . . . . . . . Retrieved Matter . | . . . . . . . . . . . Parts Self-Destructed . | . . . . . . . . . . . Prevented . | . . . . . . . . . . . Kills | -11 -10 -10 -10 -9 -8 -8 -7 -6 -6 -6 ------- Run | Yrd Mat Min Exi Min Mat Gar Fac Fac Gar Fac Combat Hostiles Destroyed 56 | . . . . . . . 20 1 29 6 Melee 56 | . . . . . . . 20 1 29 6 Classes Destroyed 9 | . . . . . . . 8 1 . . Worker 3 | . . . . . . . 3 . . . Builder 1 | . . . . . . . 1 . . . Recycler 2 | . . . . . . . 2 . . . Watcher 2 | . . . . . . . . 1 . 1 Swarmer 12 | . . . . . . . 6 . 4 2 Grunt 30 | . . . . . . . 7 . 21 2 Duelist 1 | . . . . . . . 1 . . . Sentry 10 | . . . . . . . 3 1 4 2 Programmer 3 | . . . . . . . 3 . . . Thug 3 | . . . . . . . . . 3 . Butcher 1 | . . . . . . . . . 1 . Best Kill Streak 10 | . . . . . . . 10 1 4 3 Combat Bots Only 6 | . . . . . . . 6 1 4 2 Max Kills in Single Turn 1 | . . . . . . . 1 1 1 1 Gunslinging . | . . . . . . . . . . . Exploded . | . . . . . . . . . . . Melee 1 | . . . . . . . 1 1 1 1 Uniques/NPCs Destroyed . | . . . . . . . . . . . Combat | -11 -10 -10 -10 -9 -8 -8 -7 -6 -6 -6 -------- Run | Yrd Mat Min Exi Min Mat Gar Fac Fac Gar Fac Hostile Shots Fired 623 | . 1 10 . . 1 71 159 18 269 94 Missed 216 | . 1 3 . . . 17 68 8 87 32 Damage Taken 5787 | . . 56 . . 13 798 1316 83 2619 902 Core 1769 | . . . . . . 486 426 5 617 235 Absorbed by Shields . | . . . . . . . . . . . Core Remaining (%) 62 | 100 . . . 100 . 11 39 . . . Volleys Fired 3 | . . . . . . 2 1 . . . Largest 2 | . . . . . . 2 1 . . . Hottest 90 | . . . . . . 90 5 . . . Shots Fired 5 | . . . . . . 4 1 . . . Gun 4 | . . . . . . 4 . . . . Cannon . | . . . . . . . . . . . Launcher . | . . . . . . . . . . . Special 1 | . . . . . . . 1 . . . Kinetic . | . . . . . . . . . . . Thermal 4 | . . . . . . 4 . . . . Explosive . | . . . . . . . . . . . Electromagnetic . | . . . . . . . . . . . Robot Hit Streak 4 | . . . . . . 3 4 . . . Robot Miss Streak 1 | . . . . . . 1 . . . . Penetration Max . | . . . . . . . . . . . Secondary Targets . | . . . . . . . . . . . Shots Hit Robots 172 | . . . . . . 3 60 4 90 15 Core Hits 73 | . . . . . . 1 23 2 38 9 Critical Kills . | . . . . . . . . . . . Critical Parts Destroyed 1 | . . . . . . . 1 . . . Critical Strikes 22 | . . . . . . 1 6 . 12 3 Burn 1 | . . . . . . 1 . . . . Smash 1 | . . . . . . . 1 . . . Sever 19 | . . . . . . . 5 . 12 2 Impale 1 | . . . . . . . . . . 1 Melee Attacks 391 | . . . . . . . 113 4 258 16 Impact 17 | . . . . . . . 17 . . . Slashing 368 | . . . . . . . 96 4 258 10 Piercing 6 | . . . . . . . . . . 6 Sneak Attacks 17 | . . . . . . . 6 . 11 . Combat Hostiles 4 | . . . . . . . . . 4 . Follow-up Attacks 4 | . . . . . . . 4 . . . Damage Inflicted 8830 | . . . . . . 41 3002 217 4856 714 Guns 41 | . . . . . . 41 . . . . Cannons . | . . . . . . . . . . . Explosions . | . . . . . . . . . . . Melee 8789 | . . . . . . . 3002 217 4856 714 Ramming . | . . . . . . . . . . . Kinetic . | . . . . . . . . . . . Thermal 41 | . . . . . . 41 . . . . Explosive . | . . . . . . . . . . . Electromagnetic . | . . . . . . . . . . . Impact 181 | . . . . . . . 181 . . . Slashing 8414 | . . . . . . . 2821 217 4856 520 Piercing 194 | . . . . . . . . . . 194 Highest Corruption 14 | . . . . . . 3 14 . . 3 Average Corruption 4 | . . . . . . 2 5 . . 2 Corruption Purged 5 | . . . . . . . 5 . . . Corruption Blocked . | . . . . . . . . . . . Effects 33 | . . . . . . 1 32 . . . Message Errors 8 | . . . . . . . 8 . . . Matter Fused 9 | . . . . . . . 9 . . . Heat Flow Errors 2 | . . . . . . . 2 . . . Energy Discharges 6 | . . . . . . . 6 . . . Parts Rejected 2 | . . . . . . 1 1 . . . Parts Fused 1 | . . . . . . . 1 . . . Data Loss (minor) 2 | . . . . . . . 2 . . . Alerts 1 | . . . . . . . 1 . . . Misdirections 2 | . . . . . . . 2 . . . Overload Shots . | . . . . . . . . . . . Overflow Damage 589 | . . . . . . . 316 21 195 57 Projectiles . | . . . . . . . . . . . Explosions . | . . . . . . . . . . . Melee 589 | . . . . . . . 316 21 195 57 Knockbacks 3 | . . . . . . . 3 . . . Impact 3 | . . . . . . . 3 . . . Kinetic . | . . . . . . . . . . . Secondary . | . . . . . . . . . . . Self-Inflicted Damage . | . . . . . . . . . . . Shots . | . . . . . . . . . . . Rammed . | . . . . . . . . . . . Targets Rammed . | . . . . . . . . . . . Kicked . | . . . . . . . . . . . Crushed . | . . . . . . . . . . . Highest Temperature 291 | . . . . . . 62 291 . 2 1 Average Temperature 115 | . . . . . . 25 141 . 1 1 Received Heat Transfer 1450 | . . . . . 9 261 153 30 825 172 Effects 1 | . . . . . . . 1 . . . Energy Bleed 1 | . . . . . . . 1 . . . Siege Activations . | . . . . . . . . . . . Robots Corrupted . | . . . . . . . . . . . Combat Hostiles . | . . . . . . . . . . . Parts Fried . | . . . . . . . . . . . Impact Corruptions 1 | . . . . . . . 1 . . . Robots Melted . | . . . . . . . . . . . Combat Hostiles . | . . . . . . . . . . . Parts Melted . | . . . . . . . . . . . Heat Transferred 77 | . . . . . . 77 . . . . Parts Sabotaged . | . . . . . . . . . . . Parts Stolen . | . . . . . . . . . . . Parts Stripped . | . . . . . . . . . . . Power Chain Reactions . | . . . . . . . . . . . Alert | -11 -10 -10 -10 -9 -8 -8 -7 -6 -6 -6 ------- Run | Yrd Mat Min Exi Min Mat Gar Fac Fac Gar Fac Peak Influence 2653 | . 27 85 . . 17 30 526 348 2653 1576 Initial 1392 | . . 10 . . . 13 15 257 136 1392 Average 870 | . 11 28 . . 5 18 144 272 1308 1423 Maximum Alert Level 5 | . . . . . . . 2 1 5 4 Low Security (%) 24 | 100 100 100 . 100 100 100 65 27 1 . Level 1 17 | . . . . . . . 30 72 6 . Level 2 11 | . . . . . . . 4 . 20 . Level 3 7 | . . . . . . . . . 14 . Level 4 18 | . . . . . . . . . 19 100 Level 5 19 | . . . . . . . . . 37 . High Security . | . . . . . . . . . . . Max Security . | . . . . . . . . . . . Squads Dispatched 12 | . 1 . . . 1 . 7 2 . 1 Investigation 8 | . 1 . . . 1 . 4 2 . . Extermination 3 | . . . . . . . 3 . . . Reinforcement . | . . . . . . . . . . . Assault 1 | . . . . . . . . . . 1 Garrison . | . . . . . . . . . . . Intercept . | . . . . . . . . . . . Searches Triggered . | . . . . . . . . . . . Construction Impeded . | . . . . . . . . . . . Haulers Reinforced . | . . . . . . . . . . . Active Scanning Responses . | . . . . . . . . . . . Cargo Convoy Interrupts . | . . . . . . . . . . . Stealth | -11 -10 -10 -10 -9 -8 -8 -7 -6 -6 -6 --------- Run | Yrd Mat Min Exi Min Mat Gar Fac Fac Gar Fac Distress Signals 2 | . . . . . . . 1 . . 1 Communications Jammed . | . . . . . . . . . . . Distress Signals . | . . . . . . . . . . . Times Spotted 129 | . 3 6 . . 1 13 31 2 50 23 Peak Tracking Total 14 | . 3 6 . . 1 14 6 1 6 7 Tactical Retreats 24 | . . 1 . . . . 2 . 16 5 Traps | -11 -10 -10 -10 -9 -8 -8 -7 -6 -6 -6 ------- Run | Yrd Mat Min Exi Min Mat Gar Fac Fac Gar Fac Traps Triggered 10 | . 1 . . . . . 4 . 4 1 Indirectly . | . . . . . . . . . . . Trap Hack Attempts . | . . . . . . . . . . . Triggered . | . . . . . . . . . . . Disarmed . | . . . . . . . . . . . Reprogrammed . | . . . . . . . . . . . Reused . | . . . . . . . . . . . Traps Extracted . | . . . . . . . . . . . Installed . | . . . . . . . . . . . Triggered . | . . . . . . . . . . . Machines | -11 -10 -10 -10 -9 -8 -8 -7 -6 -6 -6 ---------- Run | Yrd Mat Min Exi Min Mat Gar Fac Fac Gar Fac Machines Disabled 6 | . . . . . . . . . 6 . Max in Single Turn 1 | . . . . . . . . . 1 . Garrison Relay 4 | . . . . . . . . . 4 . Machines Repaired . | . . . . . . . . . . . Machines Dismantled . | . . . . . . . . . . . Machines Sabotaged . | . . . . . . . . . . . Overloaded Fab Kills . | . . . . . . . . . . . Hacking | -11 -10 -10 -10 -9 -8 -8 -7 -6 -6 -6 --------- Run | Yrd Mat Min Exi Min Mat Gar Fac Fac Gar Fac Machines Accessed 26 | . 1 . . . 2 1 12 6 3 1 Terminals 16 | . 1 . . . . 1 7 4 3 . Fabricators 5 | . . . . . . . 3 1 . 1 Repair Stations . | . . . . . . . . . . . Recycling Units . | . . . . . . . . . . . Scanalyzers 3 | . . . . . 1 . 2 . . . Garrison Access 2 | . . . . . 1 . . 1 . . Total Hacks 80 | . 2 . . . 10 3 41 15 8 1 Successful 36 | . 2 . . . 7 1 18 5 2 1 Failed 44 | . . . . . 3 2 23 10 6 . Catastrophic 6 | . . . . . . . 3 2 1 . Database Lockouts . | . . . . . . . . . . . Manual 40 | . 2 . 1 . . . 25 11 1 . Terminals 49 | . 2 . . . . 3 25 11 8 . Fabricators 13 | . . . . . . . 10 2 . 1 Repair Stations . | . . . . . . . . . . . Recycling Units . | . . . . . . . . . . . Scanalyzers 13 | . . . . . 7 . 6 . . . Garrison Access 5 | . . . . . 3 . . 2 . . Terminal Hacks 5 | . 1 . . . . 1 1 . 2 . Part Schematic 2 | . 1 . . . . . 1 . . . Open Door 1 | . . . . . . . . . 1 . Emergency Access Points 1 | . . . . . . 1 . . . . Security Stations 1 | . . . . . . . . . 1 . Fabricator Hacks 7 | . . . . . . . 5 1 . 1 Network Status 1 | . . . . . . . 1 . . . Load Schematic 2 | . . . . . . . 2 . . . Build 4 | . . . . . . . 2 1 . 1 Repair Station Hacks . | . . . . . . . . . . . Recycling Unit Hacks . | . . . . . . . . . . . Scanalyzer 8 | . . . . . 6 . 2 . . . Insert Component 6 | . . . . . 4 . 2 . . . Analyze 2 | . . . . . 2 . . . . . Garrison Access Hacks 2 | . . . . . 1 . . 1 . . Unlock Access 2 | . . . . . 1 . . 1 . . Unauthorized Hacks 14 | . 1 . . . . . 10 3 . . Terminals 13 | . 1 . . . . . 9 3 . . Assimilate 4 | . . . . . . . 4 . . . Botnet 9 | . 1 . . . . . 5 3 . . Fabricators 1 | . . . . . . . 1 . . . Download 1 | . . . . . . . 1 . . . Repair Stations . | . . . . . . . . . . . Recycling Units . | . . . . . . . . . . . Scanalyzers . | . . . . . . . . . . . Garrison Access . | . . . . . . . . . . . Data Cores Recovered . | . . . . . . . . . . . Used . | . . . . . . . . . . . Hacking Detections 21 | . 1 . . . 2 1 10 5 2 . Full Trace Events 8 | . . . . . 1 . 3 2 2 . Feedback Events . | . . . . . . . . . . . Feedback Blocked . | . . . . . . . . . . . Robot Schematics Acquired . | . . . . . . . . . . . Robots Built 2 | . . . . . . . . 1 . 1 Authchips . | . . . . . . . . . . . Time 90 | . . . . . . . . 50 . 40 Total Robot Build Rating 6 | . . . . . . . . 5 . 1 Part Schematics Acquired 4 | . 1 . . . 2 . 1 . . . Parts Built 2 | . . . . . . . 2 . . . Authchips . | . . . . . . . . . . . Time 109 | . . . . . . . 109 . . . Total Part Build Rating 6 | . . . . . . . 6 . . . Parts Repaired . | . . . . . . . . . . . Time . | . . . . . . . . . . . Parts Recycled . | . . . . . . . . . . . Recycled Matter . | . . . . . . . . . . . Retrieved Matter . | . . . . . . . . . . . Retrieved Components . | . . . . . . . . . . . Parts Scanalyzed 3 | . . . . . 2 . 1 . . . Part Schematics Acquired 2 | . . . . . 2 . . . . . Parts Damaged . | . . . . . . . . . . . Bothacking | -11 -10 -10 -10 -9 -8 -8 -7 -6 -6 -6 ------------ Run | Yrd Mat Min Exi Min Mat Gar Fac Fac Gar Fac Used RIF Installer 1 | . . . . . . . . . 1 . Robots Hacked 1 | . . . . . . . 1 . . . Non-combat 1 | . . . . . . . 1 . . . Combat . | . . . . . . . . . . . Robot Hacks Applied 1 | . . . . . . . 1 . . . find_chute 1 | . . . . . . . 1 . . . Relay Couplers Released 18 | . . . . . . . . . 18 . Machine Destruction 18 | . . . . . . . . . 18 . Fabnet Peak Effective % . | . . . . . . . . . . . Robots Rewired 5 | . . . . . . . 1 . 4 . Allies Hacked . | . . . . . . . . . . . Hacks Repelled . | . . . . . . . . . . . Allies | -11 -10 -10 -10 -9 -8 -8 -7 -6 -6 -6 -------- Run | Yrd Mat Min Exi Min Mat Gar Fac Fac Gar Fac Total Allies 7 | . . . . . . . 1 1 4 1 Largest Group 4 | . . . . . . . 1 1 4 1 Highest-Rated Group 176 | . . . . . . . 25 19 176 8 Highest-Rated Ally 46 | . . . . . . . 25 19 46 8 Total Orders . | . . . . . . . . . . . Ally Attacks 20 | . . . . . . . 7 . 13 . Total Damage 416 | . . . . . . . 141 . 275 . Kills 5 | . . . . . . . 1 . 4 . Allies Corrupted . | . . . . . . . . . . . Allies Melted . | . . . . . . . . . . . Intel | -11 -10 -10 -10 -9 -8 -8 -7 -6 -6 -6 ------- Run | Yrd Mat Min Exi Min Mat Gar Fac Fac Gar Fac Robot Analysis Total . | . . . . . . . . . . . Derelict Logs Recovered 2 | . . 1 . 1 . . . . . . Drone Launches . | . . . . . . . . . . . Drone Recoveries . | . . . . . . . . . . . Exploration | -11 -10 -10 -10 -9 -8 -8 -7 -6 -6 -6 ------------- Run | Yrd Mat Min Exi Min Mat Gar Fac Fac Gar Fac Turns Passed 6415 | 65 48 17 103 71 29 80 1586 554 3336 526 Spaces Moved 5499 | 49 61 45 269 191 41 108 1597 729 2084 325 Core 317 | 3 . . . . . 77 236 . 1 . Treads 81 | . . . . . . . . . 81 . Legs 2846 | 46 23 . . . . . 610 . 1842 325 Wheels 19 | . . . . . . 19 . . . . Hover . | . . . . . . . . . . . Flight 2236 | . 38 45 269 191 41 12 751 729 160 . Fastest Speed 31 | 50 37 37 37 37 34 34 31 34 31 120 Average Speed 82 | 115 69 37 37 37 34 57 70 34 115 120 Slowest Speed 275 | 120 120 37 37 37 34 100 275 34 240 120 Overloaded Moves . | . . . . . . . . . . . Propulsion Burnouts . | . . . . . . . . . . . Robots Hopped 11 | . . . . 1 2 . 6 2 . . Cave-ins Triggered 2 | . . . . . . . 2 . . . Exploration Rate (%) 31 | 4 18 20 67 57 6 30 36 14 86 12 Regions Visited 10 Branch Regions 3 Pre-discovered Areas 1 | . . . . 1 . . . . . . Known Exits Taken 2 | . . . . . 1 . . 1 . . Unknown Exits Taken 6 | 1 1 1 1 1 . . 1 . . . Scrap Searched 1 | . . . . 1 . . . . . . Spaces Dug 178 | . . . . . . . 41 . 137 . Terrain Destroyed 178 | . . . . . . . 41 . 137 . Melee 178 | . . . . . . . 41 . 137 . Projectile . | . . . . . . . . . . . AOE . | . . . . . . . . . . . Terrain Rammed . | . . . . . . . . . . . Walls Destroyed . | . . . . . . . . . . . Machines Disabled . | . . . . . . . . . . . Actions | -11 -10 -10 -10 -9 -8 -8 -7 -6 -6 -6 --------- Run | Yrd Mat Min Exi Min Mat Gar Fac Fac Gar Fac Total 6962 | 55 65 44 271 189 53 121 1950 1028 2749 437 Wait 874 | . . . . . 5 11 154 284 329 91 Move 5467 | 48 60 44 268 188 37 107 1583 724 2083 325 Hop 10 | . . . . 1 2 . 5 2 . . Pick Up 33 | 2 1 . . . 2 . 18 3 7 . Fast Attach 67 | 5 2 . 1 . 2 . 29 4 20 4 Attach 23 | . . . . . 2 1 9 3 8 . Detach 6 | . . . 1 . . . 3 2 . . Swap 16 | . . . 1 . 1 . 4 . 10 . Drop 45 | . 2 . . . 2 . 26 2 12 1 Fire 3 | . . . . . . 2 1 . . . Melee 374 | . . . . . . . 96 4 258 16 Ram . | . . . . . . . . . . . Kick . | . . . . . . . . . . . Crush . | . . . . . . . . . . . Escape Stasis 10 | . . . . . . . 2 . 8 . Rewire 34 | . . . . . . . 20 . 14 . Trap . | . . . . . . . . . . . Miscellaneous . | . . . . . . . . . . . Route ------- -11/Scrapyard -10/Materials -10/Mines (discovered 2 exits: [*Mat] / *Exi) -10/Exiles -9/Mines -8/Materials -8/Garrison -7/Factory (discovered 3 exits: *Fac / [*Sto] / [*Low]) -6/Factory (discovered 2 exits: [*Low] / Gar) -6/Garrison (discovered 3 exits: *Fac x3) -6/Factory History --------- Turn | Location | Event 4 | -11/Scrapyard | Discovered new exit (range 15) 66 | -11/Scrapyard | Entered Materials 109 | -10/Materials | Discovered new exit (range 12) 114 | -10/Materials | Entered Mines 116 | -10/Mines | Learned Materials machine intel 117 | -10/Mines | Met a Derelict bent on vengeance 117 | -10/Mines | Discovered new exit (range 6) 129 | -10/Mines | Deemed a non-threat by the Exiles lab entrance 129 | -10/Mines | Discovered new exit (range 5) 131 | -10/Mines | Entered Exiles 140 | -10/Exiles | Met 8R-AWN 147 | -10/Exiles | Met EX-HEX 161 | -10/Exiles | Met EX-DEC 170 | -10/Exiles | Met EX-BIN 175 | -10/Exiles | Aligned with FarCom system 175 | -10/Exiles | Given EX-Vault access code 184 | -10/Exiles | Opened EX-Vault 186 | -10/Exiles | Found Prototype Slashing Weapon 186 | -10/Exiles | Identified Longsword +1 196 | -10/Exiles | Warned to stay clear of 0b10 Research branches 230 | -10/Exiles | Discovered new exit (range 14) 234 | -10/Exiles | Left Exiles lab with Longsword +1 234 | -10/Exiles | Entered Mines 255 | -9/Mines | Learned location of Zion (-6) 303 | -9/Mines | Discovered new exit (range 5) 304 | -9/Mines | Build established: Mutant 305 | -9/Mines | Entered Materials 305 | -8/Materials | Evolved 4 slots: Propulsion x2, Utility x2 306 | -8/Materials | Loaded intel: 78 machine locations 334 | -8/Materials | Identified exit to Garrison 334 | -8/Materials | Entered Garrison 390 | -8/Garrison | Triggered checkpoint 390 | -8/Garrison | Core integrity fell below 50% 392 | -8/Garrison | Triggered checkpoint 398 | -8/Garrison | Core integrity fell below 20% 406 | -8/Garrison | Lost 7 parts (1p4n1u1w) 407 | -8/Garrison | Discovered new exit (range 15) 414 | -8/Garrison | Entered Factory 414 | -7/Factory | Evolved 2 slots: Utility x2 485 | -7/Factory | Discovered new exit (range 16) 665 | -7/Factory | Discovered new exit (range 7) 870 | -7/Factory | Build established: Assassin 1198 | -7/Factory | Fabricated Hacking Suite? 1319 | -7/Factory | Build established: Gladiator 1370 | -7/Factory | Fabricated Hacking Suite? 1432 | -7/Factory | Lost 3 parts (1p2n) 1491 | -7/Factory | Core integrity fell below 50% 1701 | -7/Factory | Crushed by falling debris 1702 | -7/Factory | System corruption reached 10% 1751 | -7/Factory | Discovered new exit (range 20) 1857 | -7/Factory | Crushed by falling debris 1989 | -7/Factory | Build established: Scout 2000 | -7/Factory | Entered another Factory area 2000 | -6/Factory | Evolved 2 slots: Utility x2 2181 | -6/Factory | Fabricated R-10 Processor? 2542 | -6/Factory | Discovered new exit (range 5) 2552 | -6/Factory | Identified exit to Garrison 2554 | -6/Factory | Entered Garrison 2568 | -6/Garrison | Triggered checkpoint 2599 | -6/Garrison | Garrison Relay disabled 2620 | -6/Garrison | Triggered checkpoint 2632 | -6/Garrison | Discovered new exit (range 14) 2726 | -6/Garrison | Lost 6 parts (4n1u1w) 2739 | -6/Garrison | Spotted B-86 Titan 2748 | -6/Garrison | Spotted B-75 Beast 2910 | -6/Garrison | Garrison Relay disabled 3143 | -6/Garrison | Lost 3 parts (1p2n) 3173 | -6/Garrison | Build established: Scavenger-Assassin 3469 | -6/Garrison | Discovered new exit (range 12) 3516 | -6/Garrison | Triggered checkpoint 3553 | -6/Garrison | Learned Factory security intel 3565 | -6/Garrison | Garrison Relay disabled 3646 | -6/Garrison | Triggered checkpoint 3655 | -6/Garrison | Core integrity fell below 50% 3679 | -6/Garrison | Build established: Hacker-Mutant 3805 | -6/Garrison | Discovered new exit (range 19) 3855 | -6/Garrison | Lost 7 parts (1p3n2u1w) 3938 | -6/Garrison | Triggered checkpoint 3940 | -6/Garrison | Garrison Relay disabled 4092 | -6/Garrison | Triggered checkpoint 4272 | -6/Garrison | Build established: Scavenger-Mutant 5806 | -6/Garrison | Installed Relay Interface Framework 5890 | -6/Garrison | Entered Factory 6122 | -6/Factory | Fabricated R-06 Scavenger? 6240 | -6/Factory | First assault squad dispatched 6261 | -6/Factory | Core integrity fell below 20% 6416 | -6/Factory | Destroyed by P-60 Hacker with Shock Rifle Last Messages --------------- 06352_ C-30 ARC bursts open, deploying its payload. 06352_ P-60 Hacker unfolds itself. 06353_ C-30 ARC bursts open, deploying its payload. 06353_ G-67 Veteran unfolds itself. 06353_ G-50 Soldier unfolds itself. 06353_ B-48 Gladiator unfolds itself. 06353_ I-36 Angel unfolds itself. 06380_ Carbon-fiber Leg destroyed. 06390_ Acquired Hvy. Pick. 06400_ Imp. Deuterium Engine destroyed. 06401_ P-60 Hacker suffers critical hit (Impale). 06401_ Destroyed Shock Rifle. 06404_ Carbon-fiber Leg destroyed. 06406_ Imp. Light Armor Plating destroyed. 06410_ Longsword +1 destroyed. 06412_ Imp. Melee Analysis Suite destroyed. 06413_ Critical hit (Burn: +50). Map ----- +----------------------------------------------------+ | ?????????????????????????????????????????????????? | | ?????????????????????????????????????????????????? | | ?????????????????????????????????????????????????? | | ?????????????????????????????????????????????????? | | ?????????????????????????????????????????????????? | | ?????????????????????????????????????????????????? | | ?????????????????????????????????????????????????? | | ?????????????????????????????????????????????????? | | ?????????????????????????????????????????????????? | | ?????????????????????????????????????????????????? | | ?????????????????????????????????????????????????? | | ?????????????????????????????????????????????????? | | ##???????????????????????????????????????????????? | | ????????????????##############?????????????????? | | ??????????????????# #?????????????????? | | ??????????????????# #?????????????????? | | ??????????????????#/ =! #?????????????????? | | ?????###########??# !! #?????????????????? | | ?????# ]#??# ! #?????????????????? | | #????# #??# #?????????????????? | | #????# ! ! #??# #?????????????????? | | ###### ! #??# t #?????????????????? | | / #??# #?????????????????? | | ###### """ """ #??# #?????????????????? | | #????# """S""" #??# i #?????????????????? | | #????# #??# g @ #?????????????????? | | ##########/#############p#########???????????????? | | bgg ??????? | | #?????????????? | | #?????????????? | | #?????????????? | | #?????????????? | | ###+######+#####################/###?????????????? | | ????????????????????????????????? ??????????????? | | ?????????????????????????????????? ????????????? | | ??????????????????????????????????? ??????????? | | ????????????????????????????????????? #?????????? | | ?????????????????????????????????????? #?????????? | | ???????????????????????????????????????#?????????? | | ?????????????????????????????????????????????????? | | ?????????????????????????????????????????????????? | | ?????????????????????????????????????????????????? | | ?????????????????????????????????????????????????? | | ?????????????????????????????????????????????????? | | ?????????????????????????????????????????????????? | | ?????????????????????????????????????????????????? | | | | | | | | | +----------------------------------------------------+ Best States ------------- Heat Dissipation 37 Energy Generation 21 Energy Capacity 290 Matter Stores 300 Matter Capacity 300 Sight Range 20 Terrain Scan Density 10 ECM Strength 2 Cloak Strength 2 Power Amplification 30 Armor Coverage 300 Evasion (%) 63 Melee Accuracy 20 Recoil Reduction 3 Offensive Hacking 22 Defensive Hacking 20 Item Schematics ----------------- Sensor Array | -10/Materials | Hacked System Shield | -8/Materials | Scanalyzed Nuclear Core | -8/Materials | Scanalyzed Hacking Suite | -7/Factory | Hacked Robot Schematics ------------------ None Fabricated ------------ Hacking Suite | x1 | -7/Factory Hacking Suite | x1 | -7/Factory R-10 Processor | x1 | -6/Factory | Preloaded R-06 Scavenger | x1 | -6/Factory | Preloaded Alien Tech Used ----------------- None Achievements -------------- Collateral Damage Part-time Excavator root@ Challenges ------------ None Game ------ Seed SpliceGatlingNetwork Manual? 0 Play Time 01:27:16 Cumulative 21.1 hours Start 2024.04.07 @ 02:24:16 End 2024.04.07 @ 03:53:39 Sessions 1 Manual Loads 0 Difficulty Rogue Special Mode None Game No. 28 Rogue 28 Adventurer 0 Explorer 0 Win Type - Total 0 Types 0/0/0/0/0/0/0/0/0 Lore% 12 Gallery% 26 Achievement% 23 Wizard Run 0 Options --------- Layout 1 ASCII 0 Keyboard 0 Movement Numpad Keybinds 0 Fullscreen 1 Font 24/Crisp Map View 50x35 Zoom Use 0% Tactical HUD 1 Map Filters NONE Filters NONE Steam 1 RUN: 55094c19-a102-44dc-805d-6ba0fc77408c